[Event "SixDays GM March 2024"]
[Site "Budapest"]
[Date "2024.03.31"]
[Round "2.1"]
[White "Horvath, Adam"]
[Black "Mayank Chakraborty"]
[Result "1-0"]
[ECO "C77"]
[WhiteElo "2440"]
[BlackElo "2386"]
[Annotator "TA"]
[PlyCount "99"]
[EventDate "2024.03.26"]
[EventType "tourn"]
[EventCountry "HUN"]
[SourceTitle "playchess.com"]
[Source "ChessBase"]
[SourceQuality "1"]
[TimeControl "5400+30"]

{[%evp 14,99,33,54,35,43,46,40,52,52,48,59,76,80,57,75,71,79,82,70,60,43,63,44,40,34,50,31,24,24,34,30,22,37,34,26,41,31,33,0,0,0,0,0,18,20,68,63,91,98,159,153,148,154,145,150,174,167,121,121,174,194,193,0,501,501,1443,1436,29979,831,831,831,831,825,960,891,998,998,1262,1235,1172,1110,1556,1504,1465,1350,5073,2783]} 1. e4 {[%emt 0:00:09]} e5 {[%emt 0:02:39]} 2. Nf3 {[%emt 0:00:07]} Nc6 {[%emt 0:00:02]} 3. Bb5 {[%emt 0:00:23]} a6 {[%emt 0:00:07]} 4. Ba4 {[%emt 0:00:07]} Nf6 {[%emt 0:00:26]} 5. Nc3 {[%emt 0:00:15]} d6 {[%emt 0:00:43]} 6. Bxc6+ {[%emt 0:05:23]} bxc6 {[%emt 0:00:02][%cal Bb7c6,Bc6c5][%mdl 32]} 7. d4 {[%emt 0:00:08]} exd4 {[%emt 0:05:59]} 8. Nxd4 {[%emt 0:02:23]} c5 {[%emt 0:00:26]} 9. Nc6 {[%emt 0:09:08]} Qd7 {[%emt 0:00:08]} 10. Na5 {[%emt 0:00:04]} Be7 {[%emt 0:11:50] White is slightly better.} 11. O-O {[%emt 0:05:01]} O-O {[%emt 0:00:11]} 12. Bf4 {[%emt 0:25:18]} Rb8 {[%emt 0:18:41]} 13. b3 {[%emt 0:09:09]} Re8 {[%emt 0:04:44]} 14. h3 {[%emt 0:11:42] Inhibits Ng4.} Bf8 {[%emt 0:09:50]} 15. Qf3 {[%emt 0:00:30]} Re6 {[%emt 0:06:18]} 16. Rad1 {[%emt 0:12:18]} Qe8 {[%emt 0:01:52][%cal Ob8b5]} 17. Rfe1 {[%emt 0:00:06]} Rb4 {[%emt 0:04:34][%cal Rf6e4]} 18. Nc4 {[%emt 0:09:05] White is more active.} Bb7 {[%emt 0:02:12][%cal Rf6e4]} 19. a3 {[%emt 0:00:05]} Rb5 {[%emt 0:00:58][%cal Rf6e4]} 20. Nxb5 {[%emt 0:01:02]} (20. Nd2 $5) 20... axb5 {[%emt 0:00:07]} 21. Nd2 {[%emt 0:01:07]} Nxe4 {[%emt 0:00:21]} 22. Nxe4 {[%emt 0:00:04]} Bxe4 {[%emt 0:00:13]} 23. Qc3 {[%emt 0:00:32]} Be7 {[%emt 0:08:30][%cal Bf8e7,Be7f6,Bf6d4][%mdl 32]} 24. f3 {[%emt 0:01:11]} Bf6 {[%emt 0:00:27]} 25. Qd2 {[%emt 0:00:44]} Bg6 {[%emt 0:02:34]} 26. c4 {[%emt 0:02:38]} bxc4 {[%emt 0:00:30]} 27. bxc4 $40 {[%emt 0:00:04][%mdl 128] White is up to no good.} Bd4+ {[%emt 0:05:51] A strong pair of Bishops.} 28. Kh2 {[%emt 0:01:19]} h6 {[%emt 0:01:48]} 29. Qa5 {[%emt 0:00:58]} Qe7 {[%emt 0:03:56]} (29... Qc6 $11 {deserves consideration.}) 30. Rxe6 {[%emt 0:02:13]} fxe6 {[%emt 0:00:03][%cal Bf7e6,Be6e5,Be5f4][%mdl 32]} 31. a4 $1 {[%emt 0:00:05] Threatens to win with Qa8+.} Kh7 {[%emt 0:01:07]} (31... e5 $142 32. Bg3 h5) 32. Qd2 $16 {[%emt 0:00:47] Hoping for a5.} Qd7 {[%emt 0:01:12]} 33. Qa2 {[%emt 0:00:47]} Qc6 {[%emt 0:03:15]} 34. a5 {[%emt 0:00:31] a6 is the strong threat.} Qa6 {[%emt 0:00:08] [#]} 35. Qa4 $1 {[%emt 0:00:23] Qb5 would now be deadly.} e5 {[%emt 0:00:59]} 36. Qb5 {[%emt 0:00:32]} Qa8 {[%emt 0:01:07] [#]} (36... Qxb5 $16 37. cxb5 Be8 (37... exf4 $2 38. b6 $18)) 37. a6 $1 $18 {[%emt 0:00:04] And now Qb7 would win.} exf4 {[%emt 0:02:00]} 38. Re1 $2 {[%emt 0:01:56]} (38. Qb7 $18 Qe8 39. a7 (39. Qxc7 $2 Qa4 $19)) 38... Bc3 $2 {[%emt 0:03:01][%mdl 8192]} (38... Qd8 $1 $11) 39. Re2 {[%emt 0:00:46]} Qd8 {[%emt 0:00:36]} (39... Bf6 $142 40. Qb7 Qg8) 40. a7 {[%emt 0:00:08]} Bd3 {[%emt 0:00:24]} 41. Qb8 {[%emt 0:00:15]} (41. Qe8 $142 Qxe8 42. Rxe8 c6 43. a8=Q (43. a8=B Bxc4 44. Bxc6 Kg6 $15) 43... Bxc4 44. Rh8+ (44. Qxc6 Bd3 $18) 44... Kg6 45. Qe8+ (45. Qxc6 Ba2 46. Qxd6+ Bf6 47. Qd3+ Kf7 48. Qd7+ Kg6 49. Qe8+ Bf7 50. Qe4+ Kg5) 45... Bf7 46. Qe4+ (46. Qxc6 Kg5 47. Qd7 Bh5 48. h4+ Kxh4 49. Qf5 Be5 50. Rg8 c4) 46... Kf6 47. Qxf4+ (47. Qxc6 Ba1 $18) 47... Ke7 48. Qe3+ Be5+ 49. f4) 41... Qxb8 {[%emt 0:00:12] White is clearly winning.} 42. axb8=Q {[%emt 0:00:06]} Bxe2 {[%emt 0:00:04]} 43. Qb1+ {[%emt 0:00:34]} Kg8 {[%emt 0:00:22]} 44. Qe4 {[%emt 0:00:15][%csl LRe2,LRf4]} Bf1 {[%emt 0:00:39]} 45. Kg1 {[%emt 0:01:22]} (45. Qxf4 $2 {is the wrong capture.} Be5 46. Kg1 Bxf4 $19) 45... Bxg2 {[%emt 0:00:05]} 46. Kxg2 {[%emt 0:00:14]} Be5 {[%emt 0:00:03]} 47. Qf5 {[%emt 0:00:28]} c6 {[%emt 0:00:18]} 48. Kf1 {[%emt 0:00:27]} Kh8 {[%emt 0:00:15]} 49. Ke2 {[%emt 0:00:05]} g5 {[%emt 0:00:08]} 50. Qg6 {[%emt 0:00:12] Weighted Error Value: White=0.12 (very precise) /Black=0.48.  Loses game:     	---       	Black=1      Missed win:     	White=1     	---        Mistake:       	---       	Black=4      Inaccurate:     	White=1     	Black=2      OK:         	White=17    	Black=12     Best:        	White=3     	Black=3      Strong:       	White=2     	---} 1-0

[Event "SixDays GM March 2024"]
[Site "Budapest"]
[Date "2024.03.31"]
[Round "2.2"]
[White "Konyves, Almos"]
[Black "Uskov, Artem"]
[Result "0-1"]
[ECO "E49"]
[WhiteElo "2306"]
[BlackElo "2392"]
[Annotator "RC"]
[PlyCount "96"]
[EventDate "2024.03.26"]
[EventType "tourn"]
[EventCountry "HUN"]
[SourceTitle "playchess.com"]
[Source "ChessBase"]
[SourceQuality "1"]
[TimeControl "5400+30"]

1. d4 {[%emt 0:02:05]} Nf6 {[%emt 0:02:10]} 2. c4 {[%emt 0:00:14]} e6 {[%emt 0:00:07]} 3. Nc3 {[%emt 0:00:09]} Bb4 {[%emt 0:00:06]} 4. e3 {[%emt 0:00:09]} O-O {[%emt 0:00:07]} 5. Bd3 {[%emt 0:00:18]} d5 {[%emt 0:00:07]} 6. a3 {[%emt 0:01:28]} Bxc3+ {[%emt 0:00:30]} 7. bxc3 {[%emt 0:00:05]} dxc4 {[%emt 0:00:25]} 8. Bxc4 {[%emt 0:00:05]} c5 {[%emt 0:00:05]} 9. Ne2 {[%emt 0:02:07]} Qc7 {[%emt 0:01:24]} 10. Qd3 {[%emt 0:03:32]} e5 {[%emt 0:07:06]} 11. dxe5 {[%emt 0:00:41]} Qxe5 {[%emt 0:03:57]} 12. f3 {[%emt 0:01:27]} Nc6 {[%emt 0:01:03]} 13. e4 {[%emt 0:01:55]} Qe7 {[%emt 0:01:32]} 14. Qc2 {[%emt 0:01:09]} Be6 {[%emt 0:02:50]} 15. Bxe6 {[%emt 0:00:14]} Qxe6 {[%emt 0:00:02]} 16. O-O {[%emt 0:01:40]} h6 {[%emt 0:01:23]} 17. Ng3 {[%emt 0:12:26]} Rad8 {[%emt 0:06:00]} 18. Be3 {[%emt 0:06:01]} b6 {[%emt 0:00:17]} 19. Rae1 {[%emt 0:04:12]} Rfe8 {[%emt 0:08:24]} 20. f4 {[%emt 0:20:39]} Nxe4 {[%emt 0:05:47]} 21. Bc1 {[%emt 0:02:57]} f5 {[%emt 0:00:18]} 22. Nxe4 {[%emt 0:00:03]} fxe4 {[%emt 0:00:05]} 23. f5 {[%emt 0:00:05]} Qf6 {[%emt 0:00:19]} 24. Rxe4 {[%emt 0:00:46]} Rxe4 {[%emt 0:01:28]} 25. Qxe4 {[%emt 0:00:03]} Ne5 {[%emt 0:00:21]} 26. Bf4 {[%emt 0:02:26]} Nf7 {[%emt 0:01:02]} 27. Bc7 {[%emt 0:18:05]} Rc8 {[%emt 0:00:55]} 28. Bg3 {[%emt 0:01:09]} Qxc3 {[%emt 0:02:44]} 29. Qe6 {[%emt 0:00:52]} Rd8 {[%emt 0:01:56]} 30. f6 {[%emt 0:00:07]} Qd4+ {[%emt 0:02:18]} 31. Kh1 {[%emt 0:00:14]} Qd3 {[%emt 0:05:27]} 32. Re1 {[%emt 0:00:49]} Qg6 {[%emt 0:02:30]} 33. Bh4 {[%emt 0:06:20]} Rd2 {[%emt 0:03:22]} 34. Qc6 {[%emt 0:01:56]} Rd4 {[%emt 0:16:06]} 35. Bf2 {[%emt 0:08:29]} Rf4 {[%emt 0:03:21]} 36. Re8+ {[%emt 0:00:09]} Kh7 {[%emt 0:00:02]} 37. fxg7 {[%emt 0:00:25]} Qb1+ {[%emt 0:01:55]} 38. Bg1 {[%emt 0:00:07]} Kxg7 {[%emt 0:00:04]} 39. Qe6 {[%emt 0:01:24]} Kh7 {[%emt 0:01:40]} 40. h3 {[%emt 0:01:49]} Rf1 {[%emt 0:03:12]} 41. Kh2 {[%emt 0:01:23]} Qg6 {[%emt 0:00:32]} 42. Qe2 {[%emt 0:00:36]} Qd6+ {[%emt 0:02:08]} 43. g3 {[%emt 0:00:33]} Qd1 {[%emt 0:01:21]} 44. Qe4+ {[%emt 0:00:12]} Kg7 {[%emt 0:00:01]} 45. Re7 {[%emt 0:00:45]} Rxg1 {[%emt 0:07:28]} 46. Qe5+ {[%emt 0:00:25]} Kg8 {[%emt 0:00:10]} 47. Qb8+ {[%emt 0:00:20]} Nd8 {[%emt 0:00:06]} 48. Qa8 {[%emt 0:00:43]} Rf1 {[%emt 0:00:11]} 0-1

[Event "SixDays GM March 2024"]
[Site "Budapest"]
[Date "2024.03.31"]
[Round "2.3"]
[White "Pribelszky, Bence"]
[Black "Kaasen, Tor Fredrik"]
[Result "1/2-1/2"]
[ECO "A01"]
[WhiteElo "2354"]
[BlackElo "2449"]
[Annotator "TA"]
[PlyCount "73"]
[EventDate "2024.03.26"]
[EventType "tourn"]
[EventCountry "HUN"]
[SourceTitle "playchess.com"]
[Source "ChessBase"]
[SourceQuality "1"]
[TimeControl "5400+30"]

{[%evp 21,73,-19,-13,-8,0,7,8,0,0,-15,-12,-9,0,-2,14,12,15,0,0,0,0,0,0,0,18,-4,0,0,22,16,8,52,31,0,0,0,0,0,0,0,0,0,0,0,0,0,0,-14,0,0,0,0,0,0]} 1. b3 {[%emt 0:01:00]} d5 {[%emt 0:04:04]} 2. Bb2 {[%emt 0:00:04]} Bf5 {[%emt 0:01:04]} 3. Nf3 {[%emt 0:00:36]} e6 {[%emt 0:00:53]} 4. c4 {[%emt 0:01:06]} h6 {[%emt 0:00:42]} 5. g3 {[%emt 0:03:19]} Nf6 {[%emt 0:00:49]} 6. Bg2 {[%emt 0:00:15]} Be7 {[%emt 0:00:43]} 7. O-O {[%emt 0:00:10]} O-O {[%emt 0:00:39]} 8. d3 {[%emt 0:00:36]} c6 {[%emt 0:01:11]} 9. Nbd2 {[%emt 0:00:08]} a5 {[%emt 0:01:40]} 10. a3 {[%emt 0:00:15]} Nbd7 {[%emt 0:00:50]} 11. Ra2 {[%emt 0:00:19]} Bh7 {[%emt 0:03:10]} 12. Qa1 {[%emt 0:00:12]} b5 {[%emt 0:04:22]} 13. cxb5 {[%emt 0:22:49]} cxb5 {[%emt 0:00:10]} 14. a4 {[%emt 0:00:09]} b4 {[%emt 0:07:53]} 15. Nd4 {[%emt 0:02:24]} Rc8 {[%emt 0:03:26] Dodges Nc6} 16. Nb5 {[%emt 0:02:35]} Qb6 {[%emt 0:06:48]} 17. Nf3 {[%emt 0:01:47]} Bc5 {[%emt 0:01:48]} 18. Ne5 {[%emt 0:07:38]} Nb8 {[%emt 0:13:04]} 19. e3 {[%emt 0:06:30]} Na6 {[%emt 0:09:24]} 20. Rc1 {[%emt 0:06:12]} Rfd8 {[%emt 0:03:58]} 21. Bf1 {[%emt 0:05:54]} Ne8 {[%emt 0:02:05]} 22. Nf3 {[%emt 0:03:12]} Qb7 {[%emt 0:05:06]} 23. Ne1 {[%emt 0:14:19]} Be7 {[%emt 0:04:18]} 24. Bd4 {[%emt 0:00:33]} Nc5 {[%emt 0:01:21]} 25. Bxc5 {[%emt 0:03:35]} Rxc5 {[%emt 0:01:03]} 26. Rxc5 {[%emt 0:00:09]} Bxc5 {[%emt 0:00:06]} 27. d4 {[%emt 0:00:26]} Be7 {[%emt 0:02:52] The position is equal.} 28. Bd3 {[%emt 0:00:06]} Bxd3 {[%emt 0:11:03]} 29. Nxd3 {[%emt 0:00:03]} Rc8 {[%emt 0:00:46]} 30. Ne1 {[%emt 0:10:44]} Nd6 {[%emt 0:00:36]} 31. Nxd6 {[%emt 0:00:23]} Bxd6 {[%emt 0:00:05]} 32. Rc2 {[%emt 0:00:35] Repels Rc3} Rxc2 {[%emt 0:01:49]} 33. Nxc2 {[%emt 0:00:02]} Qc8 {[%emt 0:00:58]} 34. Qb2 {[%emt 0:00:42]} f6 {[%emt 0:03:12]} 35. Ne1 {[%emt 0:01:59]} Kf7 {[%emt 0:01:12]} 36. Qc2 {[%emt 0:00:10]} Qxc2 {[%emt 0:00:29]} 37. Nxc2 {[%emt 0:00:02] An uneventful encounter.   Weighted Error Value: White=0.05 (flawless) /Black=0.05 (flawless) .  Inaccurate:     	White=1     	---        OK:         	White=11    	Black=8} 1/2-1/2

[Event "SixDays GM March 2024"]
[Site "Budapest"]
[Date "2024.03.31"]
[Round "2.4"]
[White "Juhasz, Agoston"]
[Black "Orujov, Farid"]
[Result "0-1"]
[ECO "C43"]
[WhiteElo "2406"]
[BlackElo "2266"]
[Annotator "TA"]
[PlyCount "120"]
[EventDate "2024.03.26"]
[EventType "tourn"]
[EventCountry "HUN"]
[SourceTitle "playchess.com"]
[Source "ChessBase"]
[SourceQuality "1"]
[TimeControl "5400+30"]

{[%evp 36,120,0,0,0,0,2,0,0,0,0,0,0,0,0,-8,22,-16,-17,-16,-9,-40,0,-56,-55,-99,-72,-68,-81,-101,-27,-111,-114,-143,-131,-127,-113,-120,-114,-109,-52,-114,-120,-120,-96,-106,-110,-106,-113,-226,-212,-324,-305,-326,-354,-333,-344,-447,-429,-608,-594,-775,-775,-775,-768,-752,-718,-718,-718,-718,-718,-708,-708,-618,-618,-11892,-10310,-29978,-29979,-29979,-29979,-29983,-29984,-29984,-29985,-29989,-29990]} 1. e4 {[%emt 0:00:07]} e5 {[%emt 0:00:08]} 2. Nf3 {[%emt 0:00:07]} Nf6 {[%emt 0:00:05]} 3. d4 {[%emt 0:01:15]} Nxe4 {[%emt 0:00:07]} 4. Bd3 {[%emt 0:00:14]} d5 {[%emt 0:00:08]} 5. Nxe5 {[%emt 0:00:16]} Nd7 {[%emt 0:00:19]} 6. Nc3 {[%emt 0:01:10]} Nxe5 {[%emt 0:00:27]} 7. dxe5 {[%emt 0:00:10]} Bb4 {[%emt 0:02:42]} 8. O-O {[%emt 0:00:53]} Nxc3 {[%emt 0:00:14]} 9. bxc3 {[%emt 0:00:04]} Bxc3 {[%emt 0:00:05]} 10. Rb1 {[%emt 0:00:20]} O-O {[%emt 0:00:28]} 11. Bxh7+ {[%emt 0:00:28]} Kxh7 {[%emt 0:00:05]} 12. Qd3+ {[%emt 0:00:07]} Kg8 {[%emt 0:00:39]} 13. Qxc3 {[%emt 0:00:05]} a5 {[%emt 0:01:23]} 14. Qg3 {[%emt 0:04:39]} Ra6 {[%emt 0:08:50]} 15. h4 {[%emt 0:10:10]} Qd7 {[%emt 0:09:32]} 16. Rb3 {[%emt 0:11:40]} Qf5 {[%emt 0:07:10]} 17. Rc3 {[%emt 0:13:17]} Rg6 {[%emt 0:04:41]} 18. Qf4 {[%emt 0:06:40]} c6 {[%emt 0:03:46]} 19. Qxf5 {[%emt 0:04:55]} Bxf5 {[%emt 0:00:03]} 20. f3 {[%emt 0:00:54]} Re8 {[%emt 0:09:35]} 21. h5 {[%emt 0:04:12]} Rge6 {[%emt 0:00:28]} 22. g4 {[%emt 0:00:44]} Bh7 {[%emt 0:00:31]} 23. f4 {[%emt 0:00:46]} Be4 {[%emt 0:21:37]} 24. Rf2 {[%emt 0:14:17]} b6 {[%emt 0:03:24]} 25. Re3 {[%emt 0:01:43]} g5 {[%emt 0:12:53]} 26. hxg6 {[%emt 0:05:41]} Rxg6 {[%emt 0:00:15]} 27. g5 {[%emt 0:09:39]} Bf5 {[%emt 0:01:36]} 28. c3 {[%emt 0:00:55]} Kg7 {[%emt 0:03:11]} 29. Rd2 {[%emt 0:02:22]} (29. Ree2 $11) 29... Rh8 $15 {[%emt 0:01:10]} 30. Ba3 {[%emt 0:03:57]} Re6 {[%emt 0:01:00]} 31. Bd6 {[%emt 0:00:48]} Rh4 {[%emt 0:01:16]} 32. Rf2 {[%emt 0:00:53]} Re8 {[%emt 0:02:04]} (32... Kg6 $17 33. Ref3 Re8) 33. Kf1 {[%emt 0:02:31]} (33. e6 $1 $11) 33... Kg6 $17 {[%emt 0:00:51]} 34. Ke2 {[%emt 0:00:25]} Reh8 {[%emt 0:01:25]} 35. Kd2 {[%emt 0:00:20]} Rh1 {[%emt 0:00:33]} 36. Re1 {[%emt 0:00:19]} R1h3 {[%emt 0:00:27]} 37. Re3 {[%emt 0:00:24]} Be4 {[%emt 0:01:09]} (37... a4 $17 38. Rfe2 Be6) 38. Rfe2 {[%emt 0:00:53]} (38. Bc7 $15) 38... Rh1 $17 {[%emt 0:01:18]} 39. Re1 {[%emt 0:01:06]} R8h2+ {[%emt 0:01:02]} 40. R3e2 {[%emt 0:00:02]} Rxe2+ {[%emt 0:00:24]} 41. Rxe2 {[%emt 0:00:05]} Ra1 {[%emt 0:00:16]} 42. a3 {[%emt 0:01:24] [#]} (42. Ke3 $17) 42... Kf5 $1 $19 {[%emt 0:01:06]} 43. Bc7 {[%emt 0:00:20]} (43. Ke3 $142) 43... Rxa3 $19 {[%emt 0:01:08]} (43... Kxf4 $2 44. e6+ (44. Bxb6 Kxe5 45. Bxa5 Ra2+ 46. Ke3 Rxa3 $15) 44... Kf3 45. Re3+ (45. Bxb6 fxe6 46. Rf2+ Kg4 $15) (45. exf7 Ra2+ 46. Kc1 Kxe2 $11) 45... Kf2 46. Bg3+ (46. Bxb6 Ra2+ 47. Kc1 Ra1+ 48. Kb2 Rb1+ 49. Ka2 Rxb6 $11) 46... Kg2 47. e7 (47. exf7 Ra2+ 48. Kc1 Ra1+ 49. Kb2 Rf1 $18) 47... Ra2+ 48. Kc1 $18) 44. Bxb6 {[%emt 0:00:21]} a4 $1 {[%emt 0:00:19]} (44... Kxf4 45. Rf2+ Kxg5 (45... Kxe5 46. Bd4+ Ke6 47. Rf6+ Kd7 48. Rxf7+ Kd6 49. g6 $11) (45... Bf3 46. Bc7 $11) 46. Rxf7 $11) 45. Bd4 {[%emt 0:00:47]} Rb3 {[%emt 0:00:25]} (45... Kxf4 46. Rf2+ Bf3 (46... Kxg5 47. Rxf7 Ra2+ 48. Ke3 $11) 47. g6 fxg6 48. Kd3 $11) 46. Re1 {[%emt 0:00:24]} a3 {[%emt 0:00:36]} (46... Kxf4 47. Rf1+ Bf3 (47... Kxg5 48. Rxf7 Rb2+ 49. Ke3 $15) 48. Ra1 $15) 47. Ra1 {[%emt 0:00:32]} (47. e6 $142 Kxe6 (47... fxe6 $2 48. g6 $19) 48. f5+ Kd6 (48... Kxf5 $2 49. Rf1+ Kxg5 50. Rxf7 $19) 49. g6 fxg6 (49... Bxf5 50. gxf7 Rb2+ 51. Ke3 $14) 50. fxg6 Rb2+ (50... Bxg6 $2 51. Rg1 $19) 51. Ke3 Bxg6 (51... c5 $2 52. g7 $19) 52. Rg1) 47... Bb1 $19 {[%emt 0:00:08]} ({Weaker is} 47... Kxf4 48. Rf1+ Kxg5 49. Rxf7 $19) 48. Ke3 {[%emt 0:00:37]} a2 {[%emt 0:00:09]} 49. Kd2 {[%emt 0:00:30]} Rb2+ {[%emt 0:00:10]} 50. Ke3 {[%emt 0:00:29]} Rh2 {[%emt 0:00:11]} 51. Kf3 {[%emt 0:00:24]} Rh3+ {[%emt 0:00:05]} 52. Kg2 {[%emt 0:00:13]} Rd3 {[%emt 0:00:10]} 53. Kf2 {[%emt 0:00:10]} c5 {[%emt 0:00:51]} 54. Bxc5 {[%emt 0:00:09]} Rxc3 {[%emt 0:00:06]} 55. Bb6 {[%emt 0:01:04]} Kxf4 {[%emt 0:01:13]} 56. g6 {[%emt 0:00:35]} fxg6 {[%emt 0:00:08]} (56... Bxg6 $2 57. Rxa2 Rc4 (57... Kxe5 58. Ra5 $19) 58. Be3+ Kxe5 59. Bh6 $19) 57. e6 {[%emt 0:00:04]} Rc2+ {[%emt 0:00:18]} 58. Kf1 {[%emt 0:01:11]} Rc6 {[%emt 0:00:05]} 59. e7 {[%emt 0:00:16]} Re6 $1 {[%emt 0:00:05]} (59... Rxb6 $2 {loses.} 60. e8=Q $18 (60. e8=R Bd3+ 61. Kg2 Rb2+ 62. Kg1 Rb1+ 63. Re1 Rxe1+ 64. Rxe1 Bb1 65. Rf1+ Kg3 66. Rf2 a1=Q 67. Rg2+ Kf4 68. Kh2 Qe5 69. Kg1 Bd3 70. Kh2 Be4 71. Kg1 Bxg2 72. Kxg2 Qe2+ 73. Kh3 d4 74. Kh4 Qh5#)) 60. Bc5 {[%emt 0:00:43]} Kf3 {[%emt 0:00:42]} 0-1

[Event "SixDays GM March 2024"]
[Site "Budapest"]
[Date "2024.03.31"]
[Round "2.5"]
[White "Mihok, Oliver"]
[Black "Grover, Sahaj"]
[Result "1/2-1/2"]
[ECO "C79"]
[WhiteElo "2549"]
[BlackElo "2514"]
[Annotator "TA"]
[PlyCount "83"]
[EventDate "2024.03.26"]
[EventType "tourn"]
[EventCountry "HUN"]
[SourceTitle "playchess.com"]
[Source "ChessBase"]
[SourceQuality "1"]
[TimeControl "5400+30"]

{[%evp 15,83,0,0,-13,3,0,0,-20,-18,-53,-46,-38,-39,-50,-45,-55,-40,-52,-54,-45,-45,-45,-42,-54,-36,-68,-31,-27,-41,-22,-23,-27,-26,-30,-24,-56,-54,-137,-37,-44,-42,-43,-42,-43,-43,-40,-40,-41,-41,-37,-56,-58,0,0,0,0,0,0,0,0,0,0,0,0,0,0,0,0,0,0]} 1. e4 {[%emt 0:00:02]} e5 {[%emt 0:20:02]} 2. Nf3 {[%emt 0:00:10]} Nc6 {[%emt 0:00:11]} 3. Bb5 {[%emt 0:00:05]} a6 {[%emt 0:00:04]} 4. Ba4 {[%emt 0:00:04]} Nf6 {[%emt 0:00:05]} 5. O-O {[%emt 0:00:07]} d6 {[%emt 0:00:04]} 6. d4 {[%emt 0:08:39]} b5 {[%emt 0:00:30]} 7. dxe5 {[%emt 0:03:42]} dxe5 {[%emt 0:00:06]} 8. Qxd8+ {[%emt 0:00:45]} Nxd8 {[%emt 0:00:05]} 9. Bb3 {[%emt 0:00:07]} Nd7 {[%emt 0:00:04]} 10. a4 {[%emt 0:04:36]} b4 {[%emt 0:01:41]} 11. a5 {[%emt 0:04:03]} f6 {[%emt 0:03:24]} 12. Nbd2 {[%emt 0:06:01]} Nc5 {[%emt 0:08:21]} 13. Bd5 {[%emt 0:05:02]} Bb7 {[%emt 0:07:06]} 14. Re1 {[%emt 0:01:17]} Bxd5 {[%emt 0:23:34]} 15. exd5 {[%emt 0:00:05]} Ndb7 {[%emt 0:01:24]} 16. Nd4 {[%emt 0:06:55]} O-O-O {[%emt 0:04:51][%csl LRd4,LRd5]} 17. Nc6 {[%emt 0:00:13][%csl LRb4,LRd8]} Rxd5 {[%emt 0:00:07][%cal Ob4b3]} 18. Nxb4 {[%emt 0:00:09]} Rd4 {[%emt 0:01:03]} 19. c3 {[%emt 0:04:14]} Rd7 {[%emt 0:00:10]} 20. Nc4 {[%emt 0:08:12]} Nd6 {[%emt 0:00:07]} (20... Nb3 $5 21. Ra3 Bxb4 22. cxb4 Rd3 $16) 21. Nxd6+ {[%emt 0:07:29]} Bxd6 {[%emt 0:02:17]} 22. Be3 {[%emt 0:00:44]} Kb7 {[%emt 0:00:07]} 23. Red1 {[%emt 0:07:31] [#] Threatens to win with Bxc5.} Rhd8 {[%emt 0:00:56]} 24. Kf1 {[%emt 0:02:32]} f5 {[%emt 0:07:28]} 25. Bg5 {[%emt 0:07:00]} Re8 {[%emt 0:00:28]} 26. Be3 {[%emt 0:00:41]} ({White should try} 26. f3 $15) 26... Ne6 {[%emt 0:02:33]} (26... Nb3 $17 27. Ra4 f4) 27. f3 $15 {[%emt 0:01:30]} Rf7 {[%emt 0:03:03]} 28. Rd5 {[%emt 0:04:27]} e4 {[%emt 0:02:53]} 29. fxe4 {[%emt 0:01:01]} fxe4+ {[%emt 0:00:05]} 30. Ke2 {[%emt 0:00:06]} Bxh2 {[%emt 0:06:42][%cal Og7g5]} 31. Rh1 {[%emt 0:01:03]} Nf4+ {[%emt 0:00:15]} 32. Bxf4 {[%emt 0:00:12]} Bxf4 {[%emt 0:00:05]} 33. Rxh7 {[%emt 0:00:34]} Bg3 {[%emt 0:02:16]} ({Black should play} 33... Re6 $1 $15 34. g4 Rg6) 34. Rg5 $1 $11 {[%emt 0:01:23][%csl LRg3,LRg7] The position is equal.} Rf2+ {[%emt 0:01:40]} 35. Ke3 {[%emt 0:00:14]} Rxg2 {[%emt 0:02:01] [#] ...Bf2+ would now be deadly.} 36. Rhxg7 {[%emt 0:00:46]} Bf2+ {[%emt 0:00:53]} 37. Ke2 {[%emt 0:00:07]} Rh2 {[%emt 0:00:14]} 38. Rg2 {[%emt 0:02:27]} Rxg2 {[%emt 0:00:05]} 39. Rxg2 {[%emt 0:00:03]} Ba7 {[%emt 0:00:04]} 40. Rg4 {[%emt 0:03:10]} Re5 {[%emt 0:00:26]} 41. Nc2 {[%emt 0:02:08]} Rxa5 {[%emt 0:02:34]} 42. Rxe4 {[%emt 0:00:06] Weighted Error Value: White=0.07 (flawless) /Black=0.10 (very precise) .  Mistake:       	White=1     	Black=2      Inaccurate:     	White=3     	Black=1      OK:         	White=12    	Black=20     Best:        	White=7     	Black=1} 1/2-1/2